[Event "*** Titled Tuesday Blitz"]
[Site "Chess.com"]
[Date "2020.05.26"]
[Round "2"]
[White "ErikRonka"]
[Black "FMalexhdez"]
[Result "1-0"]
[WhiteElo "2381"]
[BlackElo "2058"]
[TimeControl "180+1"]
[EndTime "10:16:34 PDT"]
[Termination "ErikRonka won by resignation"]

1. e4 {[%clk 0:02:56.7]} 1... c5 {[%clk 0:02:59.6]} 2. Nf3 {[%clk 0:02:56.5]}
2... d6 {[%clk 0:02:59.7]} 3. d4 {[%clk 0:02:57]} 3... cxd4 {[%clk 0:03:00]} 4.
Nxd4 {[%clk 0:02:57.9]} 4... Nf6 {[%clk 0:03:00]} 5. Nc3 {[%clk 0:02:58.3]} 5...
a6 {[%clk 0:03:00.4]} 6. Be3 {[%clk 0:02:57.9]} 6... e5 {[%clk 0:03:00.6]} 7.
Nb3 {[%clk 0:02:58]} 7... Be6 {[%clk 0:03:00.6]} 8. f3 {[%clk 0:02:58.3]} 8...
Nbd7 {[%clk 0:03:00.9]} 9. Qd2 {[%clk 0:02:57.1]} 9... Rc8 {[%clk 0:02:51.4]}
10. g4 {[%clk 0:02:56.8]} 10... Nb6 {[%clk 0:02:48.5]} 11. g5 {[%clk 0:02:53.3]}
11... Nfd7 {[%clk 0:02:47.9]} 12. O-O-O {[%clk 0:02:50.4]} 12... Nc4 {[%clk
0:02:46.3]} 13. Bxc4 {[%clk 0:02:50.2]} 13... Rxc4 {[%clk 0:02:42.2]} 14. h4
{[%clk 0:02:33.4]} 14... b5 {[%clk 0:02:36]} 15. h5 {[%clk 0:02:27.2]} 15... Qc7
{[%clk 0:02:34.5]} 16. Kb1 {[%clk 0:02:07.6]} 16... b4 {[%clk 0:02:20.1]} 17.
Nd5 {[%clk 0:02:05.6]} 17... Bxd5 {[%clk 0:02:19]} 18. exd5 {[%clk 0:02:06.5]}
18... g6 {[%clk 0:02:06.1]} 19. f4 {[%clk 0:01:48.9]} 19... a5 {[%clk
0:01:48.7]} 20. fxe5 {[%clk 0:01:38.3]} 20... Nxe5 {[%clk 0:01:46.5]} 21. Bf4
{[%clk 0:01:29.2]} 21... a4 {[%clk 0:01:28.9]} 22. Nd4 {[%clk 0:01:28.3]} 22...
b3 {[%clk 0:01:27.6]} 23. cxb3 {[%clk 0:01:16.9]} 23... axb3 {[%clk 0:01:26.4]}
24. Nxb3 {[%clk 0:01:10.6]} 24... gxh5 {[%clk 0:00:34.2]} 25. Bxe5 {[%clk
0:01:09.8]} 25... dxe5 {[%clk 0:00:33.4]} 26. d6 {[%clk 0:01:09.4]} 26... Qd7
{[%clk 0:00:32]} 27. Rhe1 {[%clk 0:01:03.3]} 27... Bg7 {[%clk 0:00:31.1]} 28.
Qd5 {[%clk 0:01:02.3]} 28... Rc6 {[%clk 0:00:11.5]} 29. Rxe5+ {[%clk 0:01:01.8]}
1-0

[Event "*** Titled Tuesday Blitz"]
[Site "Chess.com"]
[Date "2020.05.26"]
[Round "2"]
[White "LiverpooL174"]
[Black "BIG_Pirate"]
[Result "1-0"]
[WhiteElo "2656"]
[BlackElo "2327"]
[TimeControl "180+1"]
[EndTime "10:16:38 PDT"]
[Termination "LiverpooL174 won on time"]

1. Nf3 {[%clk 0:03:00.9]} 1... d5 {[%clk 0:02:59.8]} 2. b3 {[%clk 0:03:01.8]}
2... c6 {[%clk 0:03:00]} 3. Bb2 {[%clk 0:03:02.7]} 3... Nf6 {[%clk 0:03:00.3]}
4. e3 {[%clk 0:03:03.1]} 4... Bf5 {[%clk 0:03:00.3]} 5. c4 {[%clk 0:03:02.2]}
5... e6 {[%clk 0:02:59.7]} 6. Be2 {[%clk 0:03:02.2]} 6... h6 {[%clk 0:02:59.3]}
7. O-O {[%clk 0:03:02.9]} 7... Nbd7 {[%clk 0:02:58.8]} 8. d4 {[%clk 0:03:03.5]}
8... Bd6 {[%clk 0:02:56.7]} 9. Nc3 {[%clk 0:03:04.1]} 9... O-O {[%clk
0:02:56.4]} 10. Bd3 {[%clk 0:03:04.9]} 10... Bxd3 {[%clk 0:02:56.2]} 11. Qxd3
{[%clk 0:03:05.8]} 11... Qe7 {[%clk 0:02:56.6]} 12. e4 {[%clk 0:03:06.1]} 12...
dxe4 {[%clk 0:02:56.9]} 13. Nxe4 {[%clk 0:03:07]} 13... Nxe4 {[%clk 0:02:57.2]}
14. Qxe4 {[%clk 0:03:07.9]} 14... Ba3 {[%clk 0:02:57.1]} 15. Bc3 {[%clk
0:03:07.9]} 15... Bb4 {[%clk 0:02:56.8]} 16. Bb2 {[%clk 0:03:08.1]} 16... Ba3
{[%clk 0:02:56.5]} 17. Bxa3 {[%clk 0:02:52.8]} 17... Qxa3 {[%clk 0:02:57.4]} 18.
Rfd1 {[%clk 0:02:52.4]} 18... Rfd8 {[%clk 0:02:55.6]} 19. Rd2 {[%clk 0:02:51.4]}
19... a5 {[%clk 0:02:55]} 20. Rad1 {[%clk 0:02:51.8]} 20... a4 {[%clk
0:02:54.2]} 21. Qc2 {[%clk 0:02:49.3]} 21... axb3 {[%clk 0:02:53.8]} 22. axb3
{[%clk 0:02:50.2]} 22... Nf6 {[%clk 0:02:52.3]} 23. Ne5 {[%clk 0:02:49.9]} 23...
Ra5 {[%clk 0:02:39.3]} 24. h3 {[%clk 0:02:47.9]} 24... Qb4 {[%clk 0:02:37.9]}
25. Nd3 {[%clk 0:02:46.7]} 25... Qe7 {[%clk 0:02:34]} 26. b4 {[%clk 0:02:44.5]}
26... Ra3 {[%clk 0:02:32.3]} 27. Qb2 {[%clk 0:02:43.6]} 27... Rda8 {[%clk
0:02:31.4]} 28. Nc5 {[%clk 0:02:40.6]} 28... b6 {[%clk 0:02:16.6]} 29. Nd3
{[%clk 0:02:40.6]} 29... Qa7 {[%clk 0:02:13.3]} 30. Ne5 {[%clk 0:02:39]} 30...
Qc7 {[%clk 0:02:00.6]} 31. Rc2 {[%clk 0:02:33.1]} 31... R8a4 {[%clk 0:01:52.5]}
32. d5 {[%clk 0:02:30.9]} 32... c5 {[%clk 0:01:05.8]} 33. d6 {[%clk 0:02:28.5]}
33... Qd8 {[%clk 0:00:58.3]} 34. bxc5 {[%clk 0:02:22.4]} 34... bxc5 {[%clk
0:00:58.8]} 35. d7 {[%clk 0:02:23]} 35... Nxd7 {[%clk 0:00:23.8]} 36. Rxd7
{[%clk 0:02:22.5]} 36... Ra1+ {[%clk 0:00:17.3]} 37. Kh2 {[%clk 0:02:22.6]}
37... Qg5 {[%clk 0:00:16.6]} 38. g3 {[%clk 0:02:08.4]} 38... Qh5 {[%clk
0:00:11.8]} 39. Rd8+ {[%clk 0:02:06.7]} 39... Kh7 {[%clk 0:00:11.3]} 40. Ng4
{[%clk 0:01:51.8]} 40... Qf5 {[%clk 0:00:04.9]} 41. Rc1 {[%clk 0:01:40.3]} 41...
R4a2 {[%clk 0:00:01.2]} 42. Qxa1 {[%clk 0:01:37.8]} 1-0

[Event "*** Titled Tuesday Blitz"]
[Site "Chess.com"]
[Date "2020.05.26"]
[Round "2"]
[White "Machidon"]
[Black "iwanyu"]
[Result "0-1"]
[WhiteElo "2506"]
[BlackElo "2779"]
[TimeControl "180+1"]
[EndTime "10:16:40 PDT"]
[Termination "iwanyu won by resignation"]

1. d4 {[%clk 0:03:00.9]} 1... Nf6 {[%clk 0:02:59.5]} 2. Nf3 {[%clk 0:03:01.5]}
2... e6 {[%clk 0:02:59.7]} 3. c4 {[%clk 0:03:00.7]} 3... d5 {[%clk 0:02:59.5]}
4. Nc3 {[%clk 0:03:00.3]} 4... Bb4 {[%clk 0:03:00.1]} 5. Bg5 {[%clk 0:02:59]}
5... h6 {[%clk 0:02:58.8]} 6. Bxf6 {[%clk 0:02:58.1]} 6... Qxf6 {[%clk
0:02:58.7]} 7. Qa4+ {[%clk 0:02:58.7]} 7... Nc6 {[%clk 0:02:56.9]} 8. e3 {[%clk
0:02:59.4]} 8... O-O {[%clk 0:02:55.4]} 9. cxd5 {[%clk 0:02:57.7]} 9... exd5
{[%clk 0:02:54.8]} 10. Be2 {[%clk 0:02:57.8]} 10... Be6 {[%clk 0:02:50.8]} 11.
O-O {[%clk 0:02:57.2]} 11... a6 {[%clk 0:02:50.6]} 12. Rac1 {[%clk 0:02:56.6]}
12... Bd6 {[%clk 0:02:46.6]} 13. Qb3 {[%clk 0:02:35.9]} 13... Ne7 {[%clk
0:02:44.1]} 14. Na4 {[%clk 0:02:32.9]} 14... b6 {[%clk 0:02:39.3]} 15. Qc2
{[%clk 0:02:29.4]} 15... g5 {[%clk 0:02:30.1]} 16. a3 {[%clk 0:02:22.7]} 16...
Ng6 {[%clk 0:02:21.5]} 17. Nc3 {[%clk 0:01:48]} 17... g4 {[%clk 0:01:31.3]} 18.
Ne1 {[%clk 0:01:44.4]} 18... h5 {[%clk 0:01:30.4]} 19. f4 {[%clk 0:00:52.6]}
19... Ne7 {[%clk 0:01:14.1]} 20. Nd3 {[%clk 0:00:37.2]} 20... Nf5 {[%clk
0:01:02.4]} 21. Qd2 {[%clk 0:00:32.4]} 21... c5 {[%clk 0:00:55.2]} 22. dxc5
{[%clk 0:00:17.7]} 22... bxc5 {[%clk 0:00:55.4]} 23. e4 {[%clk 0:00:16.7]} 23...
Qd4+ {[%clk 0:00:53.5]} 24. Kh1 {[%clk 0:00:16.8]} 24... dxe4 {[%clk 0:00:53.6]}
25. Nxe4 {[%clk 0:00:11.9]} 25... Qxe4 {[%clk 0:00:53.7]} 26. Nxc5 {[%clk
0:00:11.8]} 26... Bxc5 {[%clk 0:00:52]} 27. Rxc5 {[%clk 0:00:12.7]} 27... Rad8
{[%clk 0:00:50.7]} 28. Qc2 {[%clk 0:00:11.9]} 0-1

[Event "*** Titled Tuesday Blitz"]
[Site "Chess.com"]
[Date "2020.05.26"]
[Round "2"]
[White "Chessalary"]
[Black "MasterKroket"]
[Result "0-1"]
[WhiteElo "2188"]
[BlackElo "2419"]
[TimeControl "180+1"]
[EndTime "10:16:44 PDT"]
[Termination "MasterKroket won by resignation"]

1. e4 {[%clk 0:03:00.9]} 1... c5 {[%clk 0:02:59.4]} 2. Nf3 {[%clk 0:02:58.4]}
2... e6 {[%clk 0:02:59.7]} 3. d4 {[%clk 0:02:57.8]} 3... cxd4 {[%clk 0:03:00.6]}
4. Nxd4 {[%clk 0:02:58.7]} 4... Nc6 {[%clk 0:03:00.7]} 5. Nc3 {[%clk 0:02:55.7]}
5... Qc7 {[%clk 0:03:01.1]} 6. Be3 {[%clk 0:02:53.9]} 6... a6 {[%clk 0:03:01.3]}
7. Be2 {[%clk 0:02:53]} 7... Nf6 {[%clk 0:03:01.6]} 8. O-O {[%clk 0:02:49.8]}
8... Bb4 {[%clk 0:03:02.2]} 9. Nxc6 {[%clk 0:02:43.5]} 9... bxc6 {[%clk
0:03:00.8]} 10. f3 {[%clk 0:02:43.8]} 10... d5 {[%clk 0:02:56.6]} 11. exd5
{[%clk 0:02:40.9]} 11... cxd5 {[%clk 0:02:55.4]} 12. Kh1 {[%clk 0:02:36.8]}
12... O-O {[%clk 0:02:51.3]} 13. a3 {[%clk 0:02:36.1]} 13... Bd6 {[%clk
0:02:49.5]} 14. g3 {[%clk 0:02:32.4]} 14... Rb8 {[%clk 0:02:45.2]} 15. Rb1
{[%clk 0:02:29.6]} 15... Rd8 {[%clk 0:02:30.9]} 16. Bd3 {[%clk 0:02:24.4]} 16...
Bb7 {[%clk 0:02:17.9]} 17. f4 {[%clk 0:02:23.8]} 17... d4+ {[%clk 0:02:16.3]}
18. Kg1 {[%clk 0:02:19.6]} 18... dxe3 {[%clk 0:02:14.4]} 19. Rf3 {[%clk
0:02:18.1]} 19... Bxf3 {[%clk 0:02:14]} 20. Qxf3 {[%clk 0:02:10]} 20... Bc5
{[%clk 0:02:13.7]} 21. b4 {[%clk 0:00:35.3]} 21... Ba7 {[%clk 0:02:03.2]} 22.
Ne2 {[%clk 0:00:32.3]} 22... Rbc8 {[%clk 0:01:53.7]} 23. g4 {[%clk 0:00:29.7]}
23... Qc6 {[%clk 0:01:47.6]} 24. Qxc6 {[%clk 0:00:25.7]} 24... Rxc6 {[%clk
0:01:47.3]} 25. h3 {[%clk 0:00:26.6]} 25... Rxd3 {[%clk 0:01:46.1]} 26. cxd3
{[%clk 0:00:26.5]} 26... Rc2 {[%clk 0:01:46.6]} 27. Kf1 {[%clk 0:00:25]} 27...
Nd5 {[%clk 0:01:45]} 28. Rd1 {[%clk 0:00:01]} 28... Rxe2 {[%clk 0:01:38.9]} 29.
Kxe2 {[%clk 0:00:01.9]} 29... Nc3+ {[%clk 0:01:39.3]} 30. Ke1 {[%clk 0:00:01.9]}
30... Nxd1 {[%clk 0:01:40]} 31. Kxd1 {[%clk 0:00:02.8]} 31... Kf8 {[%clk
0:01:40.4]} 32. Ke2 {[%clk 0:00:03.7]} 32... Ke7 {[%clk 0:01:40.7]} 33. d4
{[%clk 0:00:03]} 33... Kd6 {[%clk 0:01:41.1]} 34. Kxe3 {[%clk 0:00:03.9]} 34...
Kd5 {[%clk 0:01:41.5]} 35. Kd3 {[%clk 0:00:04.8]} 35... Bxd4 {[%clk 0:01:41.4]}
36. f5 {[%clk 0:00:04.8]} 36... e5 {[%clk 0:01:41]} 37. g5 {[%clk 0:00:03.6]}
37... e4+ {[%clk 0:01:41.4]} 38. Kd2 {[%clk 0:00:04.5]} 38... Kc4 {[%clk
0:01:38.6]} 39. f6 {[%clk 0:00:05.4]} 39... e3+ {[%clk 0:01:38.8]} 40. Ke2
{[%clk 0:00:04.5]} 40... g6 {[%clk 0:01:39]} 41. h4 {[%clk 0:00:04.4]} 41... Kb3
{[%clk 0:01:39.1]} 42. b5 {[%clk 0:00:05]} 42... axb5 {[%clk 0:01:38.8]} 43. h5
{[%clk 0:00:05.2]} 43... gxh5 {[%clk 0:01:38.6]} 44. Kf3 {[%clk 0:00:04.2]}
44... Kxa3 {[%clk 0:01:37.4]} 45. g6 {[%clk 0:00:02.5]} 45... hxg6 {[%clk
0:01:38.3]} 0-1

[Event "*** Titled Tuesday Blitz"]
[Site "Chess.com"]
[Date "2020.05.26"]
[Round "2"]
[White "TheBigBadChessDad"]
[Black "TudorAnton"]
[Result "0-1"]
[WhiteElo "2244"]
[BlackElo "2455"]
[TimeControl "180+1"]
[EndTime "10:16:46 PDT"]
[Termination "TudorAnton won by resignation"]

1. d4 {[%clk 0:03:00.9]} 1... Nf6 {[%clk 0:02:58]} 2. Nf3 {[%clk 0:03:00.6]}
2... d5 {[%clk 0:02:56.6]} 3. Bf4 {[%clk 0:03:00.8]} 3... Bf5 {[%clk 0:02:55.2]}
4. e3 {[%clk 0:03:00.9]} 4... e6 {[%clk 0:02:54.8]} 5. c4 {[%clk 0:03:01.6]}
5... c6 {[%clk 0:02:53.3]} 6. Nc3 {[%clk 0:03:01.6]} 6... Nbd7 {[%clk
0:02:51.8]} 7. Qb3 {[%clk 0:03:01.6]} 7... Qb6 {[%clk 0:02:51.1]} 8. c5 {[%clk
0:03:01.9]} 8... Qxb3 {[%clk 0:02:51.1]} 9. axb3 {[%clk 0:03:02.8]} 9... a6
{[%clk 0:02:49.2]} 10. b4 {[%clk 0:03:02.8]} 10... Rc8 {[%clk 0:02:49.4]} 11. h3
{[%clk 0:03:03]} 11... Ne4 {[%clk 0:02:47.6]} 12. Nd2 {[%clk 0:02:56.9]} 12...
Nxd2 {[%clk 0:02:47]} 13. Kxd2 {[%clk 0:02:56.7]} 13... f6 {[%clk 0:02:47.5]}
14. Bh2 {[%clk 0:02:54.4]} 14... e5 {[%clk 0:02:47.2]} 15. Bd3 {[%clk
0:02:52.7]} 15... Bxd3 {[%clk 0:02:43.9]} 16. Kxd3 {[%clk 0:02:52.8]} 16... e4+
{[%clk 0:02:44.2]} 17. Kd2 {[%clk 0:02:48.1]} 17... f5 {[%clk 0:02:43.8]} 18. g4
{[%clk 0:02:44.8]} 18... fxg4 {[%clk 0:02:43.8]} 19. hxg4 {[%clk 0:02:44.6]}
19... Be7 {[%clk 0:02:44.4]} 20. Raf1 {[%clk 0:02:36.4]} 20... O-O {[%clk
0:02:44.1]} 21. Ke2 {[%clk 0:02:26.9]} 21... Nf6 {[%clk 0:02:40.2]} 22. g5
{[%clk 0:02:20.8]} 22... Nd7 {[%clk 0:02:26.7]} 23. Bf4 {[%clk 0:02:16.7]} 23...
Rf5 {[%clk 0:02:26.1]} 24. Rhg1 {[%clk 0:02:07.7]} 24... Rcf8 {[%clk 0:02:24]}
25. f3 {[%clk 0:02:06.4]} 25... exf3+ {[%clk 0:02:23.1]} 26. Rxf3 {[%clk
0:02:06.4]} 26... g6 {[%clk 0:02:22.4]} 27. Rh3 {[%clk 0:01:51.4]} 27... R8f7
{[%clk 0:02:20.3]} 28. Kd3 {[%clk 0:01:46.8]} 28... Nf8 {[%clk 0:02:19.7]} 29.
Ne2 {[%clk 0:01:45.6]} 29... Ne6 {[%clk 0:02:19]} 30. Rgg3 {[%clk 0:01:36]}
30... Bxg5 {[%clk 0:02:09.7]} 31. Bxg5 {[%clk 0:01:29.5]} 31... Nxg5 {[%clk
0:02:10.2]} 32. Rh1 {[%clk 0:01:22.3]} 32... Ne4 {[%clk 0:02:09.5]} 33. Rgh3
{[%clk 0:01:15.6]} 33... Nf2+ {[%clk 0:02:09.2]} 34. Kd2 {[%clk 0:01:15.4]}
34... Nxh1 {[%clk 0:02:08.3]} 35. Rxh1 {[%clk 0:01:14.9]} 35... Rf2 {[%clk
0:02:08.9]} 36. Kd3 {[%clk 0:01:12.2]} 36... Rg2 {[%clk 0:02:04.8]} 37. Nf4
{[%clk 0:01:05.3]} 37... Rxf4 {[%clk 0:02:04.6]} 38. exf4 {[%clk 0:01:04.9]}
38... Rxb2 {[%clk 0:02:05.5]} 39. Kc3 {[%clk 0:00:57.7]} 39... Rf2 {[%clk
0:02:03.5]} 40. Rh4 {[%clk 0:00:57.6]} 40... h5 {[%clk 0:02:02.5]} 41. Kb3
{[%clk 0:00:56.3]} 41... Kg7 {[%clk 0:01:57.3]} 42. Ka4 {[%clk 0:00:56.5]} 42...
Kf6 {[%clk 0:01:50.7]} 43. Ka5 {[%clk 0:00:55.9]} 43... Rb2 {[%clk 0:01:48.6]}
44. Rh1 {[%clk 0:00:52.2]} 44... Kf5 {[%clk 0:01:47.9]} 45. Re1 {[%clk
0:00:47.1]} 45... Kxf4 {[%clk 0:01:46.9]} 46. Re7 {[%clk 0:00:47.6]} 46... h4
{[%clk 0:01:44.6]} 47. Rxb7 {[%clk 0:00:47.6]} 47... h3 {[%clk 0:01:44.8]} 48.
Rh7 {[%clk 0:00:46.6]} 48... h2 {[%clk 0:01:44]} 49. Kb6 {[%clk 0:00:46.1]}
49... g5 {[%clk 0:01:38.1]} 50. Kxc6 {[%clk 0:00:44]} 50... g4 {[%clk
0:01:37.9]} 51. Kd7 {[%clk 0:00:37.6]} 51... g3 {[%clk 0:01:37.4]} 52. c6 {[%clk
0:00:37.5]} 52... Rxb4 {[%clk 0:01:37.3]} 53. c7 {[%clk 0:00:35.5]} 53... Rc4
{[%clk 0:01:37.3]} 54. Rh6 {[%clk 0:00:30.4]} 54... Rxc7+ {[%clk 0:01:31.3]} 55.
Kxc7 {[%clk 0:00:29.8]} 55... Ke3 {[%clk 0:01:29.2]} 0-1

[Event "*** Titled Tuesday Blitz"]
[Site "Chess.com"]
[Date "2020.05.26"]
[Round "2"]
[White "wannabe2700"]
[Black "Kavyev_Ruslan"]
[Result "0-1"]
[WhiteElo "2721"]
[BlackElo "2503"]
[TimeControl "180+1"]
[EndTime "10:16:47 PDT"]
[Termination "Kavyev_Ruslan won on time"]

1. e4 {[%clk 0:01:32.6]} 1... c5 {[%clk 0:02:58.9]} 2. d4 {[%clk 0:01:32.9]}
2... cxd4 {[%clk 0:02:58.1]} 3. Nf3 {[%clk 0:01:33.4]} 3... d6 {[%clk
0:02:57.3]} 4. Nxd4 {[%clk 0:01:33.9]} 4... Nf6 {[%clk 0:02:57.1]} 5. Nc3 {[%clk
0:01:34.4]} 5... a6 {[%clk 0:02:57.5]} 6. Be3 {[%clk 0:01:34.4]} 6... e5 {[%clk
0:02:57.4]} 7. Nb3 {[%clk 0:01:34.9]} 7... Be6 {[%clk 0:02:57.1]} 8. f3 {[%clk
0:01:35.3]} 8... h5 {[%clk 0:02:57.2]} 9. Qd2 {[%clk 0:01:35.2]} 9... Nbd7
{[%clk 0:02:57.4]} 10. Nd5 {[%clk 0:01:35.4]} 10... Bxd5 {[%clk 0:02:58]} 11.
exd5 {[%clk 0:01:36.3]} 11... g6 {[%clk 0:02:58.8]} 12. O-O-O {[%clk 0:01:35.3]}
12... Bg7 {[%clk 0:02:58.7]} 13. Kb1 {[%clk 0:01:34.5]} 13... O-O {[%clk
0:02:58.7]} 14. h3 {[%clk 0:01:33]} 14... e4 {[%clk 0:02:56.6]} 15. g4 {[%clk
0:01:27.7]} 15... exf3 {[%clk 0:02:56.1]} 16. g5 {[%clk 0:01:18.6]} 16... Ne4
{[%clk 0:02:55.2]} 17. Qd3 {[%clk 0:01:14.5]} 17... Re8 {[%clk 0:02:54.7]} 18.
h4 {[%clk 0:01:07.4]} 18... Rc8 {[%clk 0:02:54.3]} 19. Rh3 {[%clk 0:01:06.3]}
19... Ndc5 {[%clk 0:02:53]} 20. Nxc5 {[%clk 0:01:04.8]} 20... Nxc5 {[%clk
0:02:52.4]} 21. Bxc5 {[%clk 0:01:02.5]} 21... Rxc5 {[%clk 0:02:52.7]} 22. Rxf3
{[%clk 0:01:03]} 22... Qb6 {[%clk 0:02:38.2]} 23. Qb3 {[%clk 0:01:02.2]} 23...
Qxb3 {[%clk 0:02:23.5]} 24. axb3 {[%clk 0:01:01.6]} 24... Re4 {[%clk 0:02:24.2]}
25. Rh3 {[%clk 0:00:49.7]} 25... Rc7 {[%clk 0:02:12.6]} 26. Bd3 {[%clk
0:00:47.2]} 26... Re5 {[%clk 0:02:11.8]} 27. Rf1 {[%clk 0:00:43.8]} 27... Rce7
{[%clk 0:02:09.8]} 28. Ka2 {[%clk 0:00:40]} 28... b5 {[%clk 0:02:00.7]} 29. c4
{[%clk 0:00:36.6]} 29... b4 {[%clk 0:02:00.8]} 30. c5 {[%clk 0:00:34.7]} 30...
Rxd5 {[%clk 0:01:57.3]} 31. cxd6 {[%clk 0:00:16.7]} 31... Rxd6 {[%clk
0:01:56.1]} 32. Bc4 {[%clk 0:00:15.9]} 32... Rd2 {[%clk 0:01:55]} 33. Rb1 {[%clk
0:00:12.5]} 33... a5 {[%clk 0:01:51.9]} 34. Rd3 {[%clk 0:00:11.6]} 34... Ree2
{[%clk 0:01:50]} 35. Rd8+ {[%clk 0:00:05.1]} 35... Rxd8 {[%clk 0:01:46.7]} 36.
Bxe2 {[%clk 0:00:06]} 36... Rd2 {[%clk 0:01:47.4]} 37. Bc4 {[%clk 0:00:05.4]}
37... Bd4 {[%clk 0:01:41.3]} 38. Ka1 {[%clk 0:00:04.7]} 38... Kg7 {[%clk
0:01:38.3]} 39. Ka2 {[%clk 0:00:04.8]} 39... Kf8 {[%clk 0:01:28.4]} 40. Ka1
{[%clk 0:00:04.7]} 40... Ke7 {[%clk 0:01:29]} 41. Re1+ {[%clk 0:00:03]} 41...
Kd6 {[%clk 0:01:29.1]} 42. Bxf7 {[%clk 0:00:02.3]} 42... Rxb2 {[%clk 0:01:29.3]}
0-1

[Event "*** Titled Tuesday Blitz"]
[Site "Chess.com"]
[Date "2020.05.26"]
[Round "2"]
[White "Love_craft"]
[Black "Roaccutane"]
[Result "0-1"]
[WhiteElo "2476"]
[BlackElo "2725"]
[TimeControl "180+1"]
[EndTime "10:16:47 PDT"]
[Termination "Roaccutane won by checkmate"]

1. d4 {[%clk 0:03:00.9]} 1... Nf6 {[%clk 0:02:59.6]} 2. c4 {[%clk 0:03:00.7]}
2... g6 {[%clk 0:02:57]} 3. Nc3 {[%clk 0:03:00.5]} 3... d5 {[%clk 0:02:56.9]} 4.
cxd5 {[%clk 0:02:57.8]} 4... Nxd5 {[%clk 0:02:57.8]} 5. e4 {[%clk 0:02:58.5]}
5... Nxc3 {[%clk 0:02:57.7]} 6. bxc3 {[%clk 0:02:59.4]} 6... Bg7 {[%clk
0:02:58.4]} 7. Nf3 {[%clk 0:03:00.1]} 7... c6 {[%clk 0:02:58.2]} 8. h3 {[%clk
0:02:59.6]} 8... O-O {[%clk 0:02:57.3]} 9. Be2 {[%clk 0:02:59.9]} 9... e5 {[%clk
0:02:56.3]} 10. O-O {[%clk 0:02:53.5]} 10... exd4 {[%clk 0:02:54.5]} 11. cxd4
{[%clk 0:02:54.4]} 11... Re8 {[%clk 0:02:54.9]} 12. e5 {[%clk 0:02:48.3]} 12...
Be6 {[%clk 0:02:47.5]} 13. Bg5 {[%clk 0:02:47.8]} 13... Qa5 {[%clk 0:02:41.9]}
14. Qc1 {[%clk 0:02:41.5]} 14... Nd7 {[%clk 0:02:34]} 15. Bh6 {[%clk 0:02:39.5]}
15... Bh8 {[%clk 0:02:30.4]} 16. Qf4 {[%clk 0:02:37.6]} 16... f6 {[%clk
0:02:23.6]} 17. Qh4 {[%clk 0:02:18.6]} 17... Bd5 {[%clk 0:01:57.3]} 18. Qg4
{[%clk 0:01:12.6]} 18... Qd8 {[%clk 0:01:51.2]} 19. Nh4 {[%clk 0:01:03.1]} 19...
Kf7 {[%clk 0:01:26.2]} 20. Bd3 {[%clk 0:00:55.6]} 20... f5 {[%clk 0:00:57.5]}
21. Nxf5 {[%clk 0:00:45]} 21... gxf5 {[%clk 0:00:57.7]} 22. Qxf5+ {[%clk
0:00:44.2]} 22... Nf6 {[%clk 0:00:49.8]} 23. exf6 {[%clk 0:00:18.4]} 23... Qxf6
{[%clk 0:00:50.7]} 24. Qxh7+ {[%clk 0:00:18.3]} 24... Bg7 {[%clk 0:00:44.4]} 25.
Bxg7 {[%clk 0:00:16.5]} 25... Qxg7 {[%clk 0:00:45.3]} 26. Qh5+ {[%clk
0:00:14.3]} 26... Kg8 {[%clk 0:00:43]} 27. Rae1 {[%clk 0:00:13.1]} 27... Qxg2#
{[%clk 0:00:42.4]} 0-1

[Event "*** Titled Tuesday Blitz"]
[Site "Chess.com"]
[Date "2020.05.26"]
[Round "2"]
[White "Norival"]
[Black "Danfii"]
[Result "0-1"]
[WhiteElo "2636"]
[BlackElo "2397"]
[TimeControl "180+1"]
[EndTime "10:16:47 PDT"]
[Termination "Danfii won by resignation"]

1. d4 {[%clk 0:03:00.9]} 1... Nf6 {[%clk 0:03:00]} 2. c4 {[%clk 0:02:59.8]} 2...
e6 {[%clk 0:03:00.2]} 3. Nc3 {[%clk 0:02:57.8]} 3... Bb4 {[%clk 0:02:59.6]} 4.
Qc2 {[%clk 0:02:57.3]} 4... Nc6 {[%clk 0:02:59.6]} 5. e3 {[%clk 0:02:56.5]} 5...
d6 {[%clk 0:02:57.8]} 6. Ne2 {[%clk 0:02:55.5]} 6... e5 {[%clk 0:02:57.1]} 7. d5
{[%clk 0:02:53.8]} 7... Ne7 {[%clk 0:02:55.6]} 8. a3 {[%clk 0:02:54]} 8... Bf5
{[%clk 0:02:54.2]} 9. Qa4+ {[%clk 0:02:51.4]} 9... Nd7 {[%clk 0:02:43.3]} 10.
Qxb4 {[%clk 0:02:48.8]} 10... Nc5 {[%clk 0:02:43.4]} 11. Ng3 {[%clk 0:01:45.4]}
11... a5 {[%clk 0:02:42.9]} 12. Qb5+ {[%clk 0:01:36.9]} 12... c6 {[%clk
0:02:42.8]} 13. dxc6 {[%clk 0:01:13.3]} 13... bxc6 {[%clk 0:02:43.7]} 14. Qxc5
{[%clk 0:01:12.8]} 14... dxc5 {[%clk 0:02:43.4]} 15. e4 {[%clk 0:01:12.7]} 15...
Be6 {[%clk 0:02:42.4]} 16. Be3 {[%clk 0:01:12.7]} 16... Rb8 {[%clk 0:02:38.8]}
17. Na4 {[%clk 0:01:11.6]} 17... O-O {[%clk 0:02:25.6]} 18. Bxc5 {[%clk
0:01:08.5]} 18... Re8 {[%clk 0:02:23.2]} 19. Be2 {[%clk 0:01:02]} 19... Ng6
{[%clk 0:02:18.7]} 20. O-O {[%clk 0:00:57.7]} 20... Nf4 {[%clk 0:02:18.6]} 21.
Rfd1 {[%clk 0:00:53.9]} 21... Qf6 {[%clk 0:02:17.1]} 22. Bf1 {[%clk 0:00:51.9]}
22... Red8 {[%clk 0:02:10.4]} 23. Bb6 {[%clk 0:00:51]} 23... Rxd1 {[%clk
0:02:02.7]} 24. Rxd1 {[%clk 0:00:51.9]} 24... h5 {[%clk 0:01:56.5]} 25. Bxa5
{[%clk 0:00:35.4]} 25... h4 {[%clk 0:01:53.3]} 26. Ne2 {[%clk 0:00:30.2]} 26...
Qg5 {[%clk 0:01:38.6]} 27. Nxf4 {[%clk 0:00:24.8]} 27... exf4 {[%clk 0:01:39.5]}
28. Bc7 {[%clk 0:00:14.9]} 28... Rc8 {[%clk 0:01:39.2]} 29. Bd6 {[%clk
0:00:14.6]} 29... h3 {[%clk 0:01:38.5]} 30. g3 {[%clk 0:00:15]} 30... fxg3
{[%clk 0:01:33.4]} 31. hxg3 {[%clk 0:00:15.9]} 31... Bg4 {[%clk 0:01:28.7]} 32.
Rd3 {[%clk 0:00:09.9]} 32... Qc1 {[%clk 0:00:54.8]} 0-1